[Event "Early-Titled-Tuesday-Blitz-March-12-2024"]
[Site "Chess.com"]
[Date "2024.03.12"]
[Round "4"]
[White "VD_coach"]
[Black "bolwin"]
[Result "1-0"]
[WhiteElo "2516"]
[BlackElo "2246"]
[TimeControl "180+1"]
[EndTime "8:40:17 PDT"]
[Termination "VD_coach won by checkmate"]

1. d4 {[%clk 0:03:00.9]} 1... Nf6 {[%clk 0:03:00.9]} 2. Nf3 {[%clk 0:03:00.8]}
2... c5 {[%clk 0:03:01.8]} 3. e3 {[%clk 0:03:00.6]} 3... d5 {[%clk 0:03:01.2]}
4. c4 {[%clk 0:03:00]} 4... e6 {[%clk 0:03:00.2]} 5. Nc3 {[%clk 0:02:56.3]} 5...
Nc6 {[%clk 0:03:00.1]} 6. a3 {[%clk 0:02:53.7]} 6... a6 {[%clk 0:02:59.5]} 7.
dxc5 {[%clk 0:02:48.1]} 7... Bxc5 {[%clk 0:02:58.3]} 8. b4 {[%clk 0:02:48.2]}
8... Ba7 {[%clk 0:02:58.8]} 9. cxd5 {[%clk 0:02:45.2]} 9... exd5 {[%clk
0:02:58.5]} 10. Bb2 {[%clk 0:02:45.5]} 10... O-O {[%clk 0:02:58.5]} 11. Be2
{[%clk 0:02:43.6]} 11... d4 {[%clk 0:02:58.4]} 12. exd4 {[%clk 0:02:43.5]} 12...
Nxd4 {[%clk 0:02:58.7]} 13. Nxd4 {[%clk 0:02:43.1]} 13... Qxd4 {[%clk
0:02:58.6]} 14. Qxd4 {[%clk 0:02:39.6]} 14... Bxd4 {[%clk 0:02:58.2]} 15. Rd1
{[%clk 0:02:40]} 15... Ba7 {[%clk 0:02:51.9]} 16. O-O {[%clk 0:02:39.4]} 16...
Be6 {[%clk 0:02:52.1]} 17. Bf3 {[%clk 0:02:39.3]} 17... Rab8 {[%clk 0:02:45.5]}
18. Ne4 {[%clk 0:02:25.5]} 18... Nxe4 {[%clk 0:02:31.3]} 19. Bxe4 {[%clk
0:02:26.4]} 19... b5 {[%clk 0:02:31.8]} 20. Be5 {[%clk 0:02:13.1]} 20... Rbd8
{[%clk 0:02:20.4]} 21. Bd6 {[%clk 0:02:05.8]} 21... Rfe8 {[%clk 0:02:15.5]} 22.
Bc6 {[%clk 0:02:05]} 22... Bd7 {[%clk 0:02:15.1]} 23. Bc7 {[%clk 0:02:04.2]}
23... Bxc6 {[%clk 0:01:59.4]} 24. Rxd8 {[%clk 0:02:02.7]} 24... Rxd8 {[%clk
0:01:58.5]} 25. Bxd8 {[%clk 0:02:03.6]} 25... Kf8 {[%clk 0:01:58.1]} 26. Rd1
{[%clk 0:01:46.4]} 26... Ke8 {[%clk 0:01:56.5]} 27. Bg5 {[%clk 0:01:44.7]} 27...
f6 {[%clk 0:01:56.2]} 28. Be3 {[%clk 0:01:44]} 28... Bb8 {[%clk 0:01:55.7]} 29.
f3 {[%clk 0:01:41.3]} 29... Be5 {[%clk 0:01:55]} 30. Bd4 {[%clk 0:01:41.1]}
30... Bb8 {[%clk 0:01:52.2]} 31. Kf2 {[%clk 0:01:40.4]} 31... h5 {[%clk
0:01:50.2]} 32. g3 {[%clk 0:01:40]} 32... Kf7 {[%clk 0:01:47.7]} 33. f4 {[%clk
0:01:39.5]} 33... g5 {[%clk 0:01:41.3]} 34. Be3 {[%clk 0:01:35.3]} 34... gxf4
{[%clk 0:01:19.2]} 35. Bxf4 {[%clk 0:01:33.9]} 35... Ba7+ {[%clk 0:01:19.1]} 36.
Be3 {[%clk 0:01:34.1]} 36... Bb8 {[%clk 0:01:19.5]} 37. Rd8 {[%clk 0:01:34]}
37... Be5 {[%clk 0:01:18.8]} 38. Rc8 {[%clk 0:00:50.2]} 38... Bd5 {[%clk
0:01:17.9]} 39. Rc2 {[%clk 0:00:44]} 39... Ke6 {[%clk 0:01:12.9]} 40. Bc5 {[%clk
0:00:31.9]} 40... h4 {[%clk 0:01:06.6]} 41. gxh4 {[%clk 0:00:31]} 41... Bxh2
{[%clk 0:01:06.1]} 42. h5 {[%clk 0:00:30.2]} 42... Be5 {[%clk 0:00:58.8]} 43.
Rd2 {[%clk 0:00:21.1]} 43... f5 {[%clk 0:00:53.1]} 44. Bd4 {[%clk 0:00:20.1]}
44... Bf4 {[%clk 0:00:51.8]} 45. Re2+ {[%clk 0:00:19.1]} 45... Kf7 {[%clk
0:00:51.4]} 46. Be5 {[%clk 0:00:17.2]} 46... Bc1 {[%clk 0:00:46.7]} 47. Rc2
{[%clk 0:00:16.2]} 47... Bxa3 {[%clk 0:00:38.8]} 48. Rc7+ {[%clk 0:00:16.2]}
48... Ke6 {[%clk 0:00:38.6]} 49. h6 {[%clk 0:00:16.1]} 49... Bxb4 {[%clk
0:00:37.7]} 50. h7 {[%clk 0:00:15.9]} 50... Kxe5 {[%clk 0:00:37.7]} 51. h8=Q+
{[%clk 0:00:15.9]} 51... Ke4 {[%clk 0:00:38.6]} 52. Qe8+ {[%clk 0:00:13.2]}
52... Kf4 {[%clk 0:00:28.3]} 53. Qe3+ {[%clk 0:00:12.9]} 53... Kg4 {[%clk
0:00:28.2]} 54. Rg7+ {[%clk 0:00:12.7]} 54... Kh5 {[%clk 0:00:22.7]} 55. Qg5#
{[%clk 0:00:12.3]} 1-0

[Event "Early-Titled-Tuesday-Blitz-March-12-2024"]
[Site "Chess.com"]
[Date "2024.03.12"]
[Round "4"]
[White "Korchmar_Vasiliy"]
[Black "Fighterman91"]
[Result "0-1"]
[WhiteElo "2717"]
[BlackElo "2775"]
[TimeControl "180+1"]
[EndTime "8:40:21 PDT"]
[Termination "Fighterman91 won by checkmate"]

1. e4 {[%clk 0:03:00.9]} 1... Nf6 {[%clk 0:02:59.9]} 2. e5 {[%clk 0:02:56.5]}
2... Nd5 {[%clk 0:03:00.2]} 3. d4 {[%clk 0:02:55.8]} 3... d6 {[%clk 0:03:00.5]}
4. Nf3 {[%clk 0:02:55]} 4... c6 {[%clk 0:02:59.2]} 5. c4 {[%clk 0:02:51.1]} 5...
Nb6 {[%clk 0:02:59.3]} 6. Nc3 {[%clk 0:02:39.2]} 6... Bg4 {[%clk 0:02:58.7]} 7.
h3 {[%clk 0:02:37.5]} 7... Bh5 {[%clk 0:02:58.1]} 8. g4 {[%clk 0:02:13.7]} 8...
Bg6 {[%clk 0:02:58]} 9. e6 {[%clk 0:02:11.4]} 9... fxe6 {[%clk 0:02:55.5]} 10.
Ng5 {[%clk 0:02:05.8]} 10... Qd7 {[%clk 0:02:43.9]} 11. Qe2 {[%clk 0:02:05.9]}
11... Na6 {[%clk 0:02:43.1]} 12. a3 {[%clk 0:01:57.3]} 12... Nc7 {[%clk
0:02:43.5]} 13. Bg2 {[%clk 0:01:53.5]} 13... O-O-O {[%clk 0:02:28.5]} 14. O-O
{[%clk 0:01:48.5]} 14... h6 {[%clk 0:02:14]} 15. Nge4 {[%clk 0:01:48.2]} 15...
Bf7 {[%clk 0:02:14.8]} 16. a4 {[%clk 0:01:47.1]} 16... e5 {[%clk 0:02:12.7]} 17.
b3 {[%clk 0:01:35.8]} 17... exd4 {[%clk 0:02:12.5]} 18. a5 {[%clk 0:01:36.5]}
18... Nxc4 {[%clk 0:02:08.6]} 19. bxc4 {[%clk 0:01:36.5]} 19... dxc3 {[%clk
0:02:09]} 20. Be3 {[%clk 0:01:28.7]} 20... Qe6 {[%clk 0:01:14.2]} 21. c5 {[%clk
0:00:54]} 21... Qc4 {[%clk 0:00:50.8]} 22. Qf3 {[%clk 0:00:42.4]} 22... Bd5
{[%clk 0:00:44.4]} 23. Qf5+ {[%clk 0:00:38]} 23... e6 {[%clk 0:00:43.4]} 24. Qg6
{[%clk 0:00:37.8]} 24... dxc5 {[%clk 0:00:35.3]} 25. a6 {[%clk 0:00:28.3]} 25...
b5 {[%clk 0:00:32.6]} 26. Bf4 {[%clk 0:00:24]} 26... b4 {[%clk 0:00:26]} 27.
Rfc1 {[%clk 0:00:12.1]} 27... Be7 {[%clk 0:00:24.6]} 28. Qxg7 {[%clk 0:00:08.8]}
28... Rhe8 {[%clk 0:00:23]} 29. Qh7 {[%clk 0:00:07.3]} 29... Rd7 {[%clk
0:00:21.6]} 30. Qg6 {[%clk 0:00:06.3]} 30... Red8 {[%clk 0:00:21.9]} 31. Bg3
{[%clk 0:00:05.5]} 31... Nb5 {[%clk 0:00:22.4]} 32. Nd2 {[%clk 0:00:04.8]} 32...
Qd4 {[%clk 0:00:18]} 33. Nf3 {[%clk 0:00:05.2]} 33... Qe4 {[%clk 0:00:17.5]} 34.
Qh5 {[%clk 0:00:04.4]} 34... b3 {[%clk 0:00:17.5]} 35. Re1 {[%clk 0:00:04.2]}
35... Qb4 {[%clk 0:00:15]} 36. Ne5 {[%clk 0:00:03.9]} 36... b2 {[%clk
0:00:14.9]} 37. Rab1 {[%clk 0:00:03.6]} 37... c2 {[%clk 0:00:14.5]} 38. Nxc6
{[%clk 0:00:04.2]} 38... cxb1=Q {[%clk 0:00:13.8]} 39. Rxb1 {[%clk 0:00:04.1]}
39... Bxc6 {[%clk 0:00:13.1]} 40. Bxc6 {[%clk 0:00:05]} 40... Rd1+ {[%clk
0:00:13.5]} 41. Kh2 {[%clk 0:00:04.8]} 41... Rxb1 {[%clk 0:00:12.4]} 42. Qe5
{[%clk 0:00:04.4]} 42... Rd6 {[%clk 0:00:08.9]} 43. Bb7+ {[%clk 0:00:04.1]}
43... Kc7 {[%clk 0:00:08.4]} 44. Qg7 {[%clk 0:00:04]} 44... Rh1+ {[%clk
0:00:08.8]} 45. Kxh1 {[%clk 0:00:03.9]} 45... b1=Q+ {[%clk 0:00:04.5]} 46. Kh2
{[%clk 0:00:03.9]} 46... Kb6 {[%clk 0:00:05]} 47. Qxe7 {[%clk 0:00:04]} 47...
Q4e1 {[%clk 0:00:04.5]} 48. h4 {[%clk 0:00:02.1]} 48... Qg1+ {[%clk 0:00:04.7]}
49. Kh3 {[%clk 0:00:02.7]} 49... Qbf1+ {[%clk 0:00:04.9]} 50. Bg2 {[%clk
0:00:03.3]} 50... Qfxg2# {[%clk 0:00:05.4]} 0-1

[Event "Early-Titled-Tuesday-Blitz-March-12-2024"]
[Site "Chess.com"]
[Date "2024.03.12"]
[Round "4"]
[White "ChessQueen"]
[Black "RebelJohnny"]
[Result "1-0"]
[WhiteElo "2766"]
[BlackElo "2519"]
[TimeControl "180+1"]
[EndTime "8:40:21 PDT"]
[Termination "ChessQueen won by resignation"]

1. Nf3 {[%clk 0:02:57.3]} 1... d5 {[%clk 0:02:56.8]} 2. g3 {[%clk 0:02:57.6]}
2... Bg4 {[%clk 0:02:56.6]} 3. Bg2 {[%clk 0:02:57.9]} 3... Nd7 {[%clk
0:02:57.2]} 4. d4 {[%clk 0:02:55.9]} 4... c6 {[%clk 0:02:52.3]} 5. O-O {[%clk
0:02:54.9]} 5... Ngf6 {[%clk 0:02:50.3]} 6. h3 {[%clk 0:02:53.4]} 6... Bh5
{[%clk 0:02:50.1]} 7. c4 {[%clk 0:02:53.6]} 7... e6 {[%clk 0:02:36.2]} 8. cxd5
{[%clk 0:02:46.2]} 8... exd5 {[%clk 0:02:30.4]} 9. Ne5 {[%clk 0:02:46.5]} 9...
Nxe5 {[%clk 0:02:19.5]} 10. dxe5 {[%clk 0:02:46.2]} 10... Nd7 {[%clk 0:02:20.2]}
11. f4 {[%clk 0:02:45.5]} 11... Bc5+ {[%clk 0:01:47]} 12. Kh2 {[%clk 0:02:45.2]}
12... h6 {[%clk 0:01:31.1]} 13. Nc3 {[%clk 0:02:38.1]} 13... g5 {[%clk
0:01:17.3]} 14. Qd3 {[%clk 0:02:34.8]} 14... gxf4 {[%clk 0:01:14]} 15. Bxf4
{[%clk 0:02:27]} 15... Bg6 {[%clk 0:01:10.8]} 16. e4 {[%clk 0:02:27.1]} 16...
Qe7 {[%clk 0:01:04.5]} 17. Qf3 {[%clk 0:02:11.9]} 17... d4 {[%clk 0:01:02.8]}
18. Na4 {[%clk 0:02:11.8]} 18... Nxe5 {[%clk 0:00:59.3]} 19. Bxe5 {[%clk
0:02:08.2]} 19... Qxe5 {[%clk 0:01:00.2]} 20. Nxc5 {[%clk 0:02:08]} 20... Qxc5
{[%clk 0:01:01.1]} 21. Qf6 {[%clk 0:02:06.6]} 21... Kd7 {[%clk 0:00:54]} 22.
Rad1 {[%clk 0:02:04.8]} 22... Rae8 {[%clk 0:00:39.9]} 23. Rxd4+ {[%clk 0:02:04]}
23... Kc8 {[%clk 0:00:40]} 24. Rfd1 {[%clk 0:01:57.5]} 24... Qe7 {[%clk
0:00:40.3]} 25. Qf4 {[%clk 0:01:54]} 25... Rd8 {[%clk 0:00:39.9]} 26. e5 {[%clk
0:01:52.2]} 26... Rxd4 {[%clk 0:00:37.9]} 27. Rxd4 {[%clk 0:01:48.5]} 27... Rd8
{[%clk 0:00:38.3]} 28. Ra4 {[%clk 0:01:46.4]} 28... a6 {[%clk 0:00:36.5]} 29.
Rc4 {[%clk 0:01:37.4]} 29... Qc7 {[%clk 0:00:34.4]} 30. Qe3 {[%clk 0:01:25]}
30... Kb8 {[%clk 0:00:34.4]} 31. Rd4 {[%clk 0:01:11.8]} 31... Rxd4 {[%clk
0:00:31.4]} 32. Qxd4 {[%clk 0:01:12]} 32... h5 {[%clk 0:00:26.4]} 33. h4 {[%clk
0:01:10.6]} 33... Qa5 {[%clk 0:00:26.3]} 34. a3 {[%clk 0:01:08.9]} 34... Qe1
{[%clk 0:00:26.6]} 35. b4 {[%clk 0:01:00.3]} 35... Qe2 {[%clk 0:00:25.7]} 36. a4
{[%clk 0:00:55.6]} 36... Bf5 {[%clk 0:00:25.5]} 37. Qf4 {[%clk 0:00:45.7]} 37...
Be6 {[%clk 0:00:25.1]} 38. Qf3 {[%clk 0:00:45.5]} 38... Qxe5 {[%clk 0:00:23.5]}
39. a5 {[%clk 0:00:35.1]} 39... Bd5 {[%clk 0:00:17.9]} 40. Qd3 {[%clk
0:00:35.3]} 40... Bxg2 {[%clk 0:00:17.7]} 41. Qd8+ {[%clk 0:00:35.4]} 41... Ka7
{[%clk 0:00:17.3]} 42. Qb6+ {[%clk 0:00:35.5]} 42... Ka8 {[%clk 0:00:17.7]} 43.
Kxg2 {[%clk 0:00:35.3]} 43... Qd5+ {[%clk 0:00:16.2]} 44. Kh2 {[%clk 0:00:34.6]}
44... Qd2+ {[%clk 0:00:16]} 45. Kg1 {[%clk 0:00:30.7]} 45... Qe1+ {[%clk
0:00:14.7]} 46. Kg2 {[%clk 0:00:30.3]} 46... Qe2+ {[%clk 0:00:14.2]} 47. Kg1
{[%clk 0:00:30.9]} 47... Qd1+ {[%clk 0:00:14.3]} 48. Kg2 {[%clk 0:00:31.2]}
48... Kb8 {[%clk 0:00:14.9]} 49. Kh2 {[%clk 0:00:27.9]} 49... Kc8 {[%clk
0:00:14.1]} 50. Qc5 {[%clk 0:00:26.7]} 50... Qd2+ {[%clk 0:00:12.4]} 51. Kg1
{[%clk 0:00:24]} 51... Qe1+ {[%clk 0:00:07.9]} 52. Kh2 {[%clk 0:00:21.2]} 52...
Qe2+ {[%clk 0:00:08.1]} 53. Kg1 {[%clk 0:00:21.6]} 53... Qd1+ {[%clk 0:00:07.2]}
54. Kg2 {[%clk 0:00:20.6]} 54... Qd5+ {[%clk 0:00:07.5]} 55. Qxd5 {[%clk
0:00:20.8]} 55... cxd5 {[%clk 0:00:08.4]} 56. g4 {[%clk 0:00:21.5]} 56... hxg4
{[%clk 0:00:08.1]} 57. h5 {[%clk 0:00:21.8]} 57... d4 {[%clk 0:00:06]} 58. h6
{[%clk 0:00:22.4]} 58... d3 {[%clk 0:00:06.6]} 59. h7 {[%clk 0:00:22.1]} 59...
d2 {[%clk 0:00:07.5]} 60. h8=Q+ {[%clk 0:00:22.6]} 60... Kc7 {[%clk 0:00:07.6]}
61. Qc3+ {[%clk 0:00:22.5]} 1-0

[Event "Early-Titled-Tuesday-Blitz-March-12-2024"]
[Site "Chess.com"]
[Date "2024.03.12"]
[Round "4"]
[White "crazy_m_attack"]
[Black "ilqar_74"]
[Result "0-1"]
[WhiteElo "2475"]
[BlackElo "2859"]
[TimeControl "180+1"]
[EndTime "8:40:22 PDT"]
[Termination "ilqar_74 won by resignation"]

1. e4 {[%clk 0:03:00.9]} 1... c5 {[%clk 0:02:59.7]} 2. Nf3 {[%clk 0:03:00.9]}
2... d6 {[%clk 0:02:59]} 3. d4 {[%clk 0:03:01.4]} 3... cxd4 {[%clk 0:02:57.7]}
4. Nxd4 {[%clk 0:03:02.3]} 4... Nf6 {[%clk 0:02:57.2]} 5. Nc3 {[%clk 0:03:02.8]}
5... e5 {[%clk 0:02:57.6]} 6. Nb3 {[%clk 0:02:59.7]} 6... Be7 {[%clk 0:02:56.9]}
7. Be2 {[%clk 0:02:57.3]} 7... Be6 {[%clk 0:02:55.7]} 8. O-O {[%clk 0:02:53.2]}
8... O-O {[%clk 0:02:55.2]} 9. Bg5 {[%clk 0:02:45.2]} 9... Nbd7 {[%clk
0:02:54.1]} 10. Re1 {[%clk 0:02:39.4]} 10... Rc8 {[%clk 0:02:53.6]} 11. Bf1
{[%clk 0:02:38.2]} 11... a6 {[%clk 0:02:53.8]} 12. a4 {[%clk 0:02:36.8]} 12...
h6 {[%clk 0:02:53.7]} 13. Be3 {[%clk 0:02:33.2]} 13... Nb6 {[%clk 0:02:52.1]}
14. a5 {[%clk 0:02:19.9]} 14... Nc4 {[%clk 0:02:51.4]} 15. Bc1 {[%clk
0:02:20.1]} 15... Qc7 {[%clk 0:02:39.6]} 16. Nd5 {[%clk 0:02:06.6]} 16... Nxd5
{[%clk 0:02:37.4]} 17. exd5 {[%clk 0:02:07.5]} 17... Bf5 {[%clk 0:02:38]} 18.
Ra4 {[%clk 0:02:03.9]} 18... b5 {[%clk 0:02:34.9]} 19. axb6 {[%clk 0:01:56.2]}
19... Nxb6 {[%clk 0:02:34.6]} 20. Rxa6 {[%clk 0:01:56]} 20... Bxc2 {[%clk
0:02:30.6]} 21. Qf3 {[%clk 0:01:55.8]} 21... f5 {[%clk 0:02:16.5]} 22. Be3
{[%clk 0:01:37.4]} 22... Nd7 {[%clk 0:01:46.2]} 23. Rc6 {[%clk 0:01:23.1]} 23...
Qb8 {[%clk 0:01:43.5]} 24. Na5 {[%clk 0:01:14.8]} 24... Qxb2 {[%clk 0:01:27.7]}
25. Rc1 {[%clk 0:01:12.2]} 25... Be4 {[%clk 0:01:21.7]} 26. Qd1 {[%clk
0:01:07.8]} 26... Ra8 {[%clk 0:01:15.1]} 27. Nc4 {[%clk 0:00:58.7]} 27... Qb8
{[%clk 0:00:58.3]} 28. f3 {[%clk 0:00:55.3]} 28... f4 {[%clk 0:00:58.5]} 29.
fxe4 {[%clk 0:00:54.7]} 29... fxe3 {[%clk 0:00:58.7]} 30. Nxe3 {[%clk
0:00:42.8]} 30... Qa7 {[%clk 0:00:55.5]} 31. R1c3 {[%clk 0:00:38.4]} 31... Bg5
{[%clk 0:00:54.2]} 32. Qe2 {[%clk 0:00:26.6]} 32... Nf6 {[%clk 0:00:53]} 33. Rc7
{[%clk 0:00:16]} 33... Qd4 {[%clk 0:00:46.7]} 34. R7c4 {[%clk 0:00:14.9]} 34...
Qb6 {[%clk 0:00:34]} 35. Rc6 {[%clk 0:00:14.7]} 35... Qb1 {[%clk 0:00:33.7]} 36.
Nf5 {[%clk 0:00:04.9]} 36... Ra1 {[%clk 0:00:27.2]} 37. Rc7 {[%clk 0:00:03.6]}
37... Nxe4 {[%clk 0:00:13.8]} 38. Rxg7+ {[%clk 0:00:04]} 38... Kh8 {[%clk
0:00:13.8]} 39. Rcc7 {[%clk 0:00:03.7]} 39... Nf6 {[%clk 0:00:09.5]} 40. Ng3
{[%clk 0:00:03.5]} 40... Nxd5 {[%clk 0:00:06.2]} 41. h4 {[%clk 0:00:03.5]} 41...
Be3+ {[%clk 0:00:05.4]} 42. Kh2 {[%clk 0:00:03.6]} 42... Bf4 {[%clk 0:00:04.1]}
43. Rh7+ {[%clk 0:00:03.1]} 43... Qxh7 {[%clk 0:00:03.7]} 44. Rxh7+ {[%clk
0:00:04]} 44... Kxh7 {[%clk 0:00:04.6]} 45. Qe4+ {[%clk 0:00:04.7]} 45... Kg7
{[%clk 0:00:05.3]} 46. Qxd5 {[%clk 0:00:05.2]} 46... Ra3 {[%clk 0:00:06]} 47.
Qxd6 {[%clk 0:00:03.1]} 47... Rxg3 {[%clk 0:00:05.4]} 48. Bc4 {[%clk 0:00:02.4]}
48... Rg6+ {[%clk 0:00:04.6]} 49. g3 {[%clk 0:00:01.7]} 49... Rxd6 {[%clk
0:00:05.2]} 50. gxf4 {[%clk 0:00:02.6]} 50... exf4 {[%clk 0:00:06.1]} 0-1

[Event "Early-Titled-Tuesday-Blitz-March-12-2024"]
[Site "Chess.com"]
[Date "2024.03.12"]
[Round "4"]
[White "Rainbow2014"]
[Black "FoxOnTheRun97"]
[Result "1-0"]
[WhiteElo "2478"]
[BlackElo "2610"]
[TimeControl "180+1"]
[EndTime "8:40:23 PDT"]
[Termination "Rainbow2014 won by checkmate"]

1. e4 {[%clk 0:03:00.9]} 1... c6 {[%clk 0:02:59.8]} 2. d4 {[%clk 0:03:00.3]}
2... d5 {[%clk 0:03:00.4]} 3. e5 {[%clk 0:03:00.8]} 3... c5 {[%clk 0:03:00.4]}
4. dxc5 {[%clk 0:02:56.3]} 4... e6 {[%clk 0:03:00.7]} 5. Nf3 {[%clk 0:02:54.2]}
5... Bxc5 {[%clk 0:03:00.5]} 6. Be2 {[%clk 0:02:50.1]} 6... Ne7 {[%clk 0:02:59]}
7. O-O {[%clk 0:02:49.9]} 7... O-O {[%clk 0:02:58.7]} 8. c3 {[%clk 0:02:43.6]}
8... Ng6 {[%clk 0:02:57.2]} 9. b4 {[%clk 0:02:42.4]} 9... Bb6 {[%clk 0:02:55]}
10. a4 {[%clk 0:02:40.6]} 10... a5 {[%clk 0:02:54.8]} 11. Re1 {[%clk 0:02:27.2]}
11... Nd7 {[%clk 0:02:51]} 12. Bd3 {[%clk 0:02:22.9]} 12... f5 {[%clk
0:02:34.9]} 13. exf6 {[%clk 0:02:05.5]} 13... Nxf6 {[%clk 0:02:34.9]} 14. Bxg6
{[%clk 0:02:01.2]} 14... hxg6 {[%clk 0:02:34.8]} 15. Be3 {[%clk 0:01:54.9]}
15... Ne4 {[%clk 0:02:28.6]} 16. bxa5 {[%clk 0:01:34.7]} 16... Rxa5 {[%clk
0:02:24.8]} 17. Qb3 {[%clk 0:01:15]} 17... Bxe3 {[%clk 0:01:51.1]} 18. Rxe3
{[%clk 0:01:13.1]} 18... Bd7 {[%clk 0:01:36.8]} 19. Nbd2 {[%clk 0:00:51.8]}
19... Nc5 {[%clk 0:01:33.3]} 20. Qb4 {[%clk 0:00:51.7]} 20... Qa8 {[%clk
0:01:21.1]} 21. Ng5 {[%clk 0:00:41]} 21... Rf5 {[%clk 0:01:14.5]} 22. Qh4 {[%clk
0:00:38.4]} 22... Rxg5 {[%clk 0:01:03.4]} 23. Qxg5 {[%clk 0:00:39.3]} 23... Rxa4
{[%clk 0:01:01.1]} 24. Rxa4 {[%clk 0:00:38.9]} 24... Bxa4 {[%clk 0:00:52.3]} 25.
Qxg6 {[%clk 0:00:32.7]} 25... Be8 {[%clk 0:00:51.5]} 26. Qb1 {[%clk 0:00:25.5]}
26... Bf7 {[%clk 0:00:47.5]} 27. h3 {[%clk 0:00:25.6]} 27... Qa5 {[%clk
0:00:39.1]} 28. Kh2 {[%clk 0:00:20.4]} 28... Qc7+ {[%clk 0:00:38.7]} 29. Rg3
{[%clk 0:00:18.6]} 29... Nd7 {[%clk 0:00:36.6]} 30. Qb4 {[%clk 0:00:10.1]} 30...
Nf6 {[%clk 0:00:35.1]} 31. Kg1 {[%clk 0:00:10.2]} 31... e5 {[%clk 0:00:32.3]}
32. Qh4 {[%clk 0:00:07.8]} 32... Nh5 {[%clk 0:00:25.1]} 33. Re3 {[%clk
0:00:05.3]} 33... e4 {[%clk 0:00:15.3]} 34. Nf1 {[%clk 0:00:05.1]} 34... Nf4
{[%clk 0:00:13.3]} 35. g3 {[%clk 0:00:03.1]} 35... Ne6 {[%clk 0:00:13.2]} 36.
Qg4 {[%clk 0:00:03.1]} 36... Qc5 {[%clk 0:00:12.3]} 37. h4 {[%clk 0:00:03.3]}
37... b5 {[%clk 0:00:12.2]} 38. Qf5 {[%clk 0:00:03.7]} 38... Qd6 {[%clk
0:00:08.9]} 39. h5 {[%clk 0:00:04.2]} 39... Nf8 {[%clk 0:00:07.8]} 40. Nh2
{[%clk 0:00:04.5]} 40... Nh7 {[%clk 0:00:07.9]} 41. Ng4 {[%clk 0:00:04.6]} 41...
Be6 {[%clk 0:00:06.2]} 42. Qf4 {[%clk 0:00:03.9]} 42... Qa6 {[%clk 0:00:04.3]}
43. Qb8+ {[%clk 0:00:03.7]} 43... Kf7 {[%clk 0:00:04.1]} 44. Ne5+ {[%clk
0:00:04.1]} 44... Kf6 {[%clk 0:00:04.1]} 45. Ng4+ {[%clk 0:00:04.3]} 45... Kf7
{[%clk 0:00:04.4]} 46. Ne5+ {[%clk 0:00:04.7]} 46... Kf6 {[%clk 0:00:05.2]} 47.
Ng4+ {[%clk 0:00:03]} 47... Bxg4 {[%clk 0:00:05.6]} 48. Qd8+ {[%clk 0:00:01.8]}
48... Kf7 {[%clk 0:00:05.5]} 49. Qc7+ {[%clk 0:00:01.9]} 49... Kf6 {[%clk
0:00:05.6]} 50. Qd8+ {[%clk 0:00:02.3]} 50... Ke5 {[%clk 0:00:05.6]} 51. Qe7+
{[%clk 0:00:02.4]} 51... Be6 {[%clk 0:00:05.5]} 52. Qxg7+ {[%clk 0:00:03.3]}
52... Nf6 {[%clk 0:00:06]} 53. Qf8 {[%clk 0:00:03.5]} 53... Qa1+ {[%clk
0:00:05.5]} 54. Kg2 {[%clk 0:00:04.1]} 54... Qd1 {[%clk 0:00:05]} 55. Qb8+
{[%clk 0:00:04.4]} 55... Kf5 {[%clk 0:00:04.9]} 56. Qf4# {[%clk 0:00:05.2]} 1-0

[Event "Early-Titled-Tuesday-Blitz-March-12-2024"]
[Site "Chess.com"]
[Date "2024.03.12"]
[Round "4"]
[White "Ginzburg_Yakov"]
[Black "Happy1712Drummer"]
[Result "1-0"]
[WhiteElo "2551"]
[BlackElo "2372"]
[TimeControl "180+1"]
[EndTime "8:40:28 PDT"]
[Termination "Ginzburg_Yakov won on time"]

1. d4 {[%clk 0:02:59.7]} 1... d5 {[%clk 0:02:59.6]} 2. c4 {[%clk 0:02:59.3]}
2... e6 {[%clk 0:02:59.7]} 3. Nc3 {[%clk 0:02:59.1]} 3... c5 {[%clk 0:02:58.2]}
4. e3 {[%clk 0:02:58.3]} 4... Nf6 {[%clk 0:02:53.2]} 5. Nf3 {[%clk 0:02:57.1]}
5... Nc6 {[%clk 0:02:53.2]} 6. a3 {[%clk 0:02:57.1]} 6... dxc4 {[%clk
0:02:52.8]} 7. Bxc4 {[%clk 0:02:56.4]} 7... a6 {[%clk 0:02:51.4]} 8. O-O {[%clk
0:02:54.2]} 8... b5 {[%clk 0:02:50.1]} 9. Ba2 {[%clk 0:02:53.5]} 9... Bb7 {[%clk
0:02:50.6]} 10. d5 {[%clk 0:02:51.5]} 10... exd5 {[%clk 0:02:48.2]} 11. Nxd5
{[%clk 0:02:51.8]} 11... Bd6 {[%clk 0:02:39]} 12. e4 {[%clk 0:02:48.5]} 12...
Nxd5 {[%clk 0:02:36.7]} 13. Bxd5 {[%clk 0:02:44.3]} 13... O-O {[%clk 0:02:34.9]}
14. Re1 {[%clk 0:02:37.7]} 14... Qc7 {[%clk 0:02:32.5]} 15. e5 {[%clk
0:02:27.6]} 15... Be7 {[%clk 0:02:12.5]} 16. Qe2 {[%clk 0:01:09.7]} 16... Rad8
{[%clk 0:01:56.3]} 17. Be4 {[%clk 0:01:09.1]} 17... Nd4 {[%clk 0:01:47]} 18.
Nxd4 {[%clk 0:01:09]} 18... Rxd4 {[%clk 0:01:44.5]} 19. Bxb7 {[%clk 0:01:05]}
19... Qxb7 {[%clk 0:01:45.4]} 20. e6 {[%clk 0:01:01.2]} 20... Qd5 {[%clk
0:01:35.9]} 21. exf7+ {[%clk 0:00:54]} 21... Rxf7 {[%clk 0:01:36.8]} 22. Be3
{[%clk 0:00:52.5]} 22... Rd3 {[%clk 0:01:31.2]} 23. h3 {[%clk 0:00:34.3]} 23...
Bf8 {[%clk 0:01:25.5]} 24. a4 {[%clk 0:00:34.2]} 24... b4 {[%clk 0:01:13.4]} 25.
Red1 {[%clk 0:00:25.1]} 25... Rd7 {[%clk 0:01:09.5]} 26. Rxd3 {[%clk 0:00:23.7]}
26... Qxd3 {[%clk 0:01:09.6]} 27. Qg4 {[%clk 0:00:20.9]} 27... c4 {[%clk
0:01:04.8]} 28. Qe6+ {[%clk 0:00:19.9]} 28... Kh8 {[%clk 0:01:04.4]} 29. Qxa6
{[%clk 0:00:19.7]} 29... h6 {[%clk 0:00:48.4]} 30. a5 {[%clk 0:00:19]} 30... b3
{[%clk 0:00:28]} 31. Qb5 {[%clk 0:00:16.7]} 31... Rd5 {[%clk 0:00:15.4]} 32. Qe8
{[%clk 0:00:16.2]} 32... Rd8 {[%clk 0:00:14.6]} 33. Qb5 {[%clk 0:00:15.6]} 33...
Rd5 {[%clk 0:00:14.4]} 34. Qe8 {[%clk 0:00:15.5]} 34... Rd8 {[%clk 0:00:14.8]}
35. Qe6 {[%clk 0:00:15.6]} 35... Qc2 {[%clk 0:00:09.9]} 36. Rc1 {[%clk
0:00:12.7]} 36... Rd1+ {[%clk 0:00:07.2]} 37. Rxd1 {[%clk 0:00:12.3]} 37...
Qxd1+ {[%clk 0:00:07.8]} 38. Kh2 {[%clk 0:00:13.1]} 38... Bd6+ {[%clk
0:00:06.8]} 39. g3 {[%clk 0:00:13.4]} 39... c3 {[%clk 0:00:07.5]} 40. Qc8+
{[%clk 0:00:13.2]} 40... Kh7 {[%clk 0:00:07.5]} 41. Qxc3 {[%clk 0:00:13.7]}
41... Qc2 {[%clk 0:00:05.8]} 42. Qd4 {[%clk 0:00:10.9]} 42... Be7 {[%clk
0:00:04.4]} 43. a6 {[%clk 0:00:11.1]} 43... Bf6 {[%clk 0:00:04.7]} 44. Qd5
{[%clk 0:00:08.8]} 44... Qxb2 {[%clk 0:00:03.2]} 45. Qe4+ {[%clk 0:00:06.7]}
45... g6 {[%clk 0:00:01.6]} 46. a7 {[%clk 0:00:07.6]} 46... Qa3 {[%clk
0:00:01.2]} 47. Qb7+ {[%clk 0:00:07.4]} 47... Bg7 {[%clk 0:00:01.2]} 48. a8=Q
{[%clk 0:00:08.3]} 1-0